fUST/lending_fUST_20250526
["ID","MTS","AMOUNT","RATE_DAILY","PERIOD"]
[362360758,1748215847512,-430.0,0.00020273,2]
[362360759,1748215847522,-430.0,0.00020273,2]
[362360760,1748215847531,-430.0,0.00020273,2]
[362360761,1748215847542,-430.0,0.00020273,2]
[362360762,1748215847552,-172.774591,0.00020273,2]
[362360763,1748215847561,-430.0,0.00020273,2]
[362360764,1748215847571,-172.774591,0.00020273,2]
[362360765,1748215847581,-430.0,0.00020273,2]
[362360766,1748215847591,-500.0,0.00020273,2]
[362360767,1748215847601,-430.0,0.00020273,2]
[362360768,1748215847611,-430.0,0.00020273,2]
[362360769,1748215847620,-430.0,0.00020273,2]
[362360770,1748215847630,-430.0,0.00020273,2]
[362360771,1748215847639,-430.0,0.00020273,2]
[362360772,1748215847649,-430.0,0.00020273,2]
[362360773,1748215847658,-430.0,0.00020273,2]
[362360774,1748215847668,-430.0,0.00020273,2]
[362360775,1748215847680,-430.0,0.00020273,2]
[362360776,1748215847689,-430.0,0.00020273,2]
[362360777,1748215847699,-769.09,0.00020273,2]
[362360778,1748215847711,-430.0,0.00020273,2]
[362360779,1748215847722,-211.6,0.00020273,2]
[362360780,1748215847732,-430.0,0.00020273,2]
[362360781,1748215847743,-430.0,0.00020273,2]
[362360782,1748215847754,-430.0,0.00020273,2]
[362360783,1748215847765,-430.0,0.00020273,2]
[362360784,1748215847776,-430.0,0.00020273,2]
[362360785,1748215847787,-430.0,0.00020273,2]
[362360786,1748215847797,-430.0,0.00020273,2]
[362360787,1748215847806,-546.57,0.00020273,2]
[362360788,1748215847815,-799.23,0.00020273,2]
[362360789,1748215847825,-430.0,0.00020273,2]
[362360790,1748215847836,-430.0,0.00020273,2]
[362360791,1748215847847,-430.0,0.00020273,2]
[362360792,1748215847857,-430.0,0.00020273,2]
[362360793,1748215847868,-430.0,0.00020273,2]
[362360794,1748215847878,-430.0,0.00020273,2]
[362360795,1748215847891,-430.0,0.00020273,2]
[362360796,1748215847901,-430.0,0.00020273,2]
[362360797,1748215847913,-430.0,0.00020273,2]
[362360798,1748215847923,-430.0,0.00020273,2]
[362360799,1748215847934,-430.0,0.00020273,2]
[362360800,1748215847944,-430.0,0.00020273,2]
[362360801,1748215847956,-430.0,0.00020273,2]
[362360802,1748215847966,-479.56,0.00020273,2]
[362360803,1748215847978,-430.0,0.00020273,2]
[362360804,1748215847987,-430.0,0.00020273,2]
[362360805,1748215847997,-237.8,0.00020273,2]
[362360806,1748215848007,-328.32649679,0.00020273,2]
[362360807,1748215848016,-430.0,0.00020273,2]
[362360808,1748215848026,-430.0,0.00020273,2]
[362360809,1748215848036,-430.0,0.00020273,2]
[362360810,1748215848047,-852.92295614,0.00020348,3]
[362360811,1748215848056,-216.35,0.00020547,2]
[362360812,1748215848066,-430.0,0.00020547,2]
[362360813,1748215848075,-430.0,0.00020547,2]
[362360814,1748215848084,-437.74,0.00020547,2]
[362360815,1748215848094,-430.0,0.00020547,2]
[362360816,1748215848103,-430.0,0.00020547,2]
[362360817,1748215848112,-430.0,0.00020547,2]
[362360818,1748215848122,-430.0,0.00020547,2]
[362360819,1748215848131,-330.16,0.00020547,2]
[362360820,1748215848142,-525.51,0.00020547,2]
[362360821,1748215848152,-430.0,0.00020547,2]
[362360822,1748215848162,-430.0,0.00020547,2]
[362360823,1748215848172,-430.0,0.00020547,2]
[362360824,1748215848182,-430.0,0.00020547,2]
[362360825,1748215848191,-430.0,0.00020547,2]
[362360826,1748215848201,-430.0,0.00020547,2]
[362360827,1748215848210,-430.0,0.00020547,2]
[362360828,1748215848220,-430.0,0.00020547,2]
[362360829,1748215848230,-430.0,0.00020547,2]
[362360830,1748215848240,-430.0,0.00020547,2]
[362360831,1748215848250,-430.0,0.00020547,2]
[362360832,1748215848259,-430.0,0.00020547,2]
[362360833,1748215848269,-500.0,0.00020547,2]
[362360834,1748215848279,-430.0,0.00020547,2]
[362360835,1748215848289,-377.4,0.00020547,2]
[362360836,1748215848299,-430.0,0.00020547,2]
[362360837,1748215848309,-430.0,0.00020547,2]
[362360838,1748215848319,-430.0,0.00020547,2]
[362360839,1748215848329,-430.0,0.00020547,2]
[362360840,1748215848339,-430.0,0.00020547,2]
[362360841,1748215848348,-430.0,0.00020547,2]
[362360842,1748215848358,-430.0,0.00020547,2]
[362360843,1748215848368,-430.0,0.00020547,2]
[362360844,1748215848377,-769.09,0.00020547,2]
[362360845,1748215848387,-430.0,0.00020547,2]
[362360846,1748215848396,-430.0,0.00020547,2]
[362360847,1748215848406,-430.0,0.00020547,2]
[362360848,1748215848415,-430.0,0.00020547,2]
[362360849,1748215848425,-260.27332379,0.00020547,2]
[362360850,1748215848436,-451.03,0.00020547,2]
[362360851,1748215848447,-430.0,0.00020547,2]
[362360852,1748215848457,-430.0,0.00020547,2]
[362360853,1748215848476,-546.57,0.00020547,2]
[362360854,1748215848494,-799.23,0.00020547,2]
[362360855,1748215848509,-430.0,0.00020547,2]
[362360856,1748215848522,-430.0,0.00020547,2]
[362360857,1748215848539,-430.0,0.00020547,2]
[362360858,1748215848555,-430.0,0.00020547,2]
[362360859,1748215848570,-430.0,0.00020547,2]
[362360860,1748215848586,-355.22,0.00020547,2]
[362360861,1748215848602,-430.0,0.00020547,2]
[362360862,1748215848617,-430.0,0.00020547,2]
[362360863,1748215848632,-430.0,0.00020547,2]
[362360864,1748215848646,-430.0,0.00020547,2]
[362360865,1748215848660,-430.0,0.00020547,2]
[362360866,1748215848677,-430.0,0.00020547,2]
[362360867,1748215848692,-430.0,0.00020547,2]
[362360868,1748215848707,-479.56,0.00020547,2]
[362360869,1748215848719,-430.0,0.00020547,2]
[362360870,1748215848733,-430.0,0.00020547,2]
[362360871,1748215848746,-290.21,0.00020547,2]
[362360872,1748215848763,-430.0,0.00020547,2]
[362360873,1748215848779,-291.92,0.00020547,2]
[362360874,1748215848794,-852.92295614,0.00020555,3]
[362360875,1748215848810,-420.0,0.00020683,2]
[362360876,1748215848827,-852.92295614,0.00020762,3]
[362360877,1748215848841,-585.9,0.00020764,2]
[362360878,1748215848853,-309.87,0.00020821,2]
[362360879,1748215848864,-441.9,0.00020821,2]
[362360880,1748215848878,-430.0,0.00020821,2]
[362360881,1748215848893,-430.0,0.00020821,2]
[362360882,1748215848909,-238.76,0.00020821,2]
[362360883,1748215848920,-525.51,0.00020821,2]
[362360884,1748215848934,-430.0,0.00020821,2]
[362360885,1748215848949,-430.0,0.00020821,2]
[362360886,1748215848963,-211.18,0.00020821,2]
[362360887,1748215848975,-430.0,0.00020821,2]
[362360888,1748215848989,-430.0,0.00020821,2]
[362360889,1748215849002,-430.0,0.00020821,2]
[362360890,1748215849016,-430.0,0.00020821,2]
[362360891,1748215849029,-430.0,0.00020821,2]
[362360892,1748215849046,-442.25,0.00020821,2]
[362360893,1748215849060,-234.03,0.00020821,2]
[362360894,1748215849074,-430.0,0.00020821,2]
[362360895,1748215849088,-430.0,0.00020821,2]
[362360896,1748215849101,-500.0,0.00020821,2]
[362360897,1748215849114,-430.0,0.00020821,2]
[362360898,1748215849128,-430.0,0.00020821,2]
[362360899,1748215849142,-430.0,0.00020821,2]
[362360900,1748215849156,-430.0,0.00020821,2]
[362360901,1748215849169,-430.0,0.00020821,2]
[362360902,1748215849182,-430.0,0.00020821,2]
[362360903,1748215849195,-430.0,0.00020821,2]
[362360904,1748215849208,-471.93,0.00020821,2]
[362360905,1748215849222,-430.0,0.00020821,2]
[362360906,1748215849235,-769.09,0.00020821,2]
[362360907,1748215849248,-430.0,0.00020821,2]
[362360908,1748215849262,-430.0,0.00020821,2]
[362360909,1748215849275,-430.0,0.00020821,2]
[362360910,1748215849289,-430.0,0.00020821,2]
[362360911,1748215849305,-483.99,0.00020821,2]
[362360912,1748215849318,-389.55,0.00020821,2]
[362360913,1748215849331,-546.57,0.00020821,2]
[362360914,1748215849345,-799.23,0.00020821,2]
[362360915,1748215849360,-536.07,0.00020821,2]
[362360916,1748215849375,-430.0,0.00020821,2]
[362360917,1748215849388,-389.11,0.00020821,2]
[362360918,1748215849402,-430.0,0.00020821,2]
[362360919,1748215849415,-430.0,0.00020821,2]
[362360920,1748215849429,-430.0,0.00020821,2]
[362360921,1748215849442,-430.0,0.00020821,2]
[362360922,1748215849456,-430.0,0.00020821,2]
[362360923,1748215849470,-430.0,0.00020821,2]
[362360924,1748215849483,-430.0,0.00020821,2]
[362360925,1748215849495,-509.46,0.00020821,2]
[362360926,1748215849508,-430.0,0.00020821,2]
[362360927,1748215849521,-479.56,0.00020821,2]
[362360928,1748215849534,-430.0,0.00020821,2]
[362360929,1748215849551,-430.0,0.00020821,2]
[362360930,1748215849565,-430.0,0.00020821,2]
[362360931,1748215849579,-852.92295614,0.00020969,4]
[362360932,1748215849592,-430.0,0.00021095,2]
[362360933,1748215849605,-430.0,0.00021095,2]
[362360934,1748215849619,-525.51,0.00021095,2]
[362360935,1748215849633,-430.0,0.00021095,2]
[362360936,1748215849646,-502.13,0.00021095,2]
[362360937,1748215849659,-430.0,0.00021095,2]
[362360938,1748215849673,-430.0,0.00021095,2]
[362360939,1748215849686,-430.0,0.00021095,2]
[362360940,1748215849699,-430.0,0.00021095,2]
[362360941,1748215849713,-430.0,0.00021095,2]
[362360942,1748215849726,-430.0,0.00021095,2]
[362360943,1748215849741,-430.0,0.00021095,2]
[362360944,1748215849754,-430.0,0.00021095,2]
[362360945,1748215849768,-430.0,0.00021095,2]
[362360946,1748215849781,-430.0,0.00021095,2]
[362360947,1748215849797,-430.0,0.00021095,2]
[362360948,1748215849810,-430.0,0.00021095,2]
[362360949,1748215849825,-416.03,0.00021095,2]
[362360950,1748215849839,-430.0,0.00021095,2]
[362360951,1748215850018,-430.0,0.00021095,2]
[362360952,1748215850043,-769.09,0.00021095,2]
[362360953,1748215850054,-371.42,0.00021095,2]
[362360954,1748215850065,-430.0,0.00021095,2]
[362360955,1748215850076,-430.0,0.00021095,2]
[362360956,1748215850087,-430.0,0.00021095,2]
[362360957,1748215850098,-546.57,0.00021095,2]
[362360958,1748215850109,-799.23,0.00021095,2]
[362360959,1748215850118,-270.0,0.00021095,2]
[362360960,1748215850128,-430.0,0.00021095,2]
[362360961,1748215850138,-205.73,0.00021095,2]
[362360962,1748215850149,-430.0,0.00021095,2]
[362360963,1748215850159,-430.0,0.00021095,2]
[362360964,1748215850170,-430.0,0.00021095,2]
[362360965,1748215850183,-521.3,0.00021095,2]
[362360966,1748215850193,-430.0,0.00021095,2]
[362360967,1748215850203,-430.0,0.00021095,2]
[362360968,1748215850214,-479.56,0.00021095,2]
[362360969,1748215850224,-430.0,0.00021095,2]
[362360970,1748215850234,-430.0,0.00021095,2]
[362360971,1748215850245,-430.0,0.00021095,2]
[362360972,1748215850255,-168.011,0.00021144,2]
[362360973,1748215850265,-852.92295614,0.00021176,4]
[362360974,1748215850274,-500.0,0.000213,2]
[362360975,1748215850284,-2200.0,0.00021332,2]
[362360976,1748215850293,-404.0,0.00021363,2]
[362360977,1748215850303,-430.0,0.00021369,2]
[362360978,1748215850312,-422.4,0.00021369,2]
[362360979,1748215850322,-430.0,0.00021369,2]
[362360980,1748215850332,-525.51,0.00021369,2]
[362360981,1748215850342,-430.0,0.00021369,2]
[362360982,1748215850352,-430.0,0.00021369,2]
[362360983,1748215850362,-430.0,0.00021369,2]
[362360984,1748215850372,-430.0,0.00021369,2]
[362360985,1748215850382,-430.0,0.00021369,2]
[362360986,1748215850392,-430.0,0.00021369,2]
[362360987,1748215850402,-569.36,0.00021369,2]
[362360988,1748215850413,-430.0,0.00021369,2]
[362360989,1748215850423,-430.0,0.00021369,2]
[362360990,1748215850433,-430.0,0.00021369,2]
[362360991,1748215850443,-430.0,0.00021369,2]
[362360992,1748215850453,-430.0,0.00021369,2]
[362360993,1748215850463,-430.0,0.00021369,2]
[362360994,1748215850473,-430.0,0.00021369,2]
[362360995,1748215850483,-430.0,0.00021369,2]
[362360996,1748215850493,-769.09,0.00021369,2]
[362360997,1748215850504,-430.0,0.00021369,2]
[362360998,1748215850515,-430.0,0.00021369,2]
[362360999,1748215850525,-430.0,0.00021369,2]
[362361000,1748215850536,-546.57,0.00021369,2]
[362361001,1748215850546,-799.23,0.00021369,2]
[362361002,1748215850556,-430.0,0.00021369,2]
[362361003,1748215850567,-430.0,0.00021369,2]
[362361004,1748215850576,-430.0,0.00021369,2]
[362361005,1748215850587,-430.0,0.00021369,2]
[362361006,1748215850598,-430.0,0.00021369,2]
[362361007,1748215850607,-430.0,0.00021369,2]
[362361008,1748215850618,-479.56,0.00021369,2]
[362361009,1748215850628,-430.0,0.00021369,2]
[362361010,1748215850638,-430.0,0.00021369,2]
[362361011,1748215850649,-430.0,0.00021369,2]
[362361012,1748215850660,-852.92295614,0.00021383,5]
[362361013,1748215850672,-852.92295614,0.0002159,5]
[362361014,1748215850682,-549.83,0.00021643,2]
[362361015,1748215850692,-430.0,0.00021643,2]
[362361016,1748215850704,-525.51,0.00021643,2]
[362361017,1748215850715,-430.0,0.00021643,2]
[362361018,1748215850727,-430.0,0.00021643,2]
[362361019,1748215850737,-257.35,0.00021643,2]
[362361020,1748215850748,-430.0,0.00021643,2]
[362361021,1748215850759,-430.0,0.00021643,2]
[362361022,1748215850768,-430.0,0.00021643,2]
[362361023,1748215850779,-430.0,0.00021643,2]
[362361024,1748215850790,-430.0,0.00021643,2]
[362361025,1748215850800,-430.0,0.00021643,2]
[362361026,1748215850810,-430.0,0.00021643,2]
[362361027,1748215850820,-430.0,0.00021643,2]
[362361028,1748215850831,-464.58698583,0.00021643,2]
[362361029,1748215850841,-430.0,0.00021643,2]
[362361030,1748215850852,-769.09,0.00021643,2]
[362361031,1748215850863,-467.54171466,0.00021643,2]
[362361032,1748215850874,-430.0,0.00021643,2]
[362361033,1748215850885,-430.0,0.00021643,2]
[362361034,1748215850896,-546.57,0.00021643,2]
[362361035,1748215850907,-799.23,0.00021643,2]
[362361036,1748215850918,-430.0,0.00021643,2]
[362361037,1748215850929,-430.0,0.00021643,2]
[362361038,1748215850940,-430.0,0.00021643,2]
[362361039,1748215850950,-430.0,0.00021643,2]
[362361040,1748215850959,-430.0,0.00021643,2]
[362361041,1748215850968,-430.0,0.00021643,2]
[362361042,1748215850978,-479.56,0.00021643,2]
[362361043,1748215850988,-430.0,0.00021643,2]
[362361044,1748215851000,-430.0,0.00021643,2]
[362361045,1748215851010,-430.0,0.00021643,2]
[362361046,1748215851020,-500.0,0.00021686,2]
[362361047,1748215851031,-500.0,0.00021722,2]
[362361048,1748215851040,-500.0,0.00021722,2]
[362361049,1748215851050,-500.86147166,0.00021722,2]
[362361050,1748215851061,-500.0,0.00021722,2]
[362361051,1748215851070,-600.0,0.00021722,2]
[362361052,1748215851080,-500.0,0.00021722,2]
[362361053,1748215851090,-500.0,0.00021722,2]
[362361054,1748215851100,-852.92295614,0.00021797,6]
[362361055,1748215851110,-157.61818795,0.00021808,2]
[362361056,1748215851119,-720.72693063,0.00021848,2]
[362361057,1748215851129,-172.774591,0.00021848,2]
[362361058,1748215851139,-172.774591,0.00021848,2]
[362361059,1748215851149,-500.0,0.0002185,2]
[362361060,1748215851159,-500.0,0.0002185,2]
[362361061,1748215851170,-500.0,0.0002185,2]
[362361062,1748215851180,-500.0,0.00021883,2]
[362361063,1748215851190,-500.0,0.00021883,2]
[362361064,1748215851199,-500.0,0.00021883,2]
[362361065,1748215851209,-500.0,0.00021883,2]
[362361066,1748215851219,-500.0,0.00021883,2]
[362361067,1748215851228,-2685.38,0.000219,2]
[362361068,1748215851239,-500.0,0.00021916,2]
[362361069,1748215851249,-500.0,0.00021917,2]
[362361070,1748215851258,-200.0,0.00021917,2]
[362361071,1748215851268,-430.0,0.00021917,2]
[362361072,1748215851279,-525.51,0.00021917,2]
[362361073,1748215851289,-430.0,0.00021917,2]
[362361074,1748215851299,-430.0,0.00021917,2]
[362361075,1748215851309,-430.0,0.00021917,2]
[362361076,1748215851319,-430.0,0.00021917,2]
[362361077,1748215851329,-430.0,0.00021917,2]
[362361078,1748215851339,-430.0,0.00021917,2]
[362361079,1748215851349,-430.0,0.00021917,2]
[362361080,1748215851360,-430.0,0.00021917,2]
[362361081,1748215851370,-430.0,0.00021917,2]
[362361082,1748215851380,-430.0,0.00021917,2]
[362361083,1748215851393,-430.0,0.00021917,2]
[362361084,1748215851404,-769.09,0.00021917,2]
[362361085,1748215851415,-430.0,0.00021917,2]
[362361086,1748215851426,-430.0,0.00021917,2]
[362361087,1748215851437,-4328.78,0.00021917,2]
[362361088,1748215851447,-546.57,0.00021917,2]
[362361089,1748215851458,-799.23,0.00021917,2]
[362361090,1748215851468,-430.0,0.00021917,2]
[362361091,1748215851478,-430.0,0.00021917,2]
[362361092,1748215851487,-430.0,0.00021917,2]
[362361093,1748215851497,-430.0,0.00021917,2]
[362361094,1748215851507,-430.0,0.00021917,2]
[362361095,1748215851517,-430.0,0.00021917,2]
[362361096,1748215851526,-479.56,0.00021917,2]
[362361097,1748215851536,-478.34,0.00021917,2]
[362361098,1748215851547,-430.0,0.00021917,2]
[362361099,1748215851556,-430.0,0.00021917,2]
[362361100,1748215851566,-500.0,0.00021933,2]
[362361101,1748215851575,-669.6,0.00021985,2]
[362361102,1748215851585,-852.92295614,0.00022003,6]
[362361103,1748215851595,-2000.0,0.000221,2]
[362361104,1748215851607,-157.61818795,0.0002211,2]
[362361105,1748215851619,-430.0,0.00022191,2]
[362361106,1748215851629,-525.51,0.00022191,2]
[362361107,1748215851642,-430.0,0.00022191,2]
[362361108,1748215851654,-430.0,0.00022191,2]
[362361109,1748215851665,-430.0,0.00022191,2]
[362361110,1748215851681,-430.0,0.00022191,2]
[362361111,1748215851692,-430.0,0.00022191,2]
[362361112,1748215851702,-430.0,0.00022191,2]
[362361113,1748215851715,-430.0,0.00022191,2]
[362361114,1748215851728,-430.0,0.00022191,2]
[362361115,1748215851739,-224.7643019,0.00022191,2]
[362361116,1748215851751,-430.0,0.00022191,2]
[362361117,1748215851765,-430.0,0.00022191,2]
[362361118,1748215851777,-769.09,0.00022191,2]
[362361119,1748215851787,-430.0,0.00022191,2]
[362361120,1748215851798,-430.0,0.00022191,2]
[362361121,1748215851809,-546.57,0.00022191,2]
[362361122,1748215851821,-799.23,0.00022191,2]
[362361123,1748215851832,-498.96,0.00022191,2]
[362361124,1748215851844,-430.0,0.00022191,2]
[362361125,1748215851854,-430.0,0.00022191,2]
[362361126,1748215851866,-430.0,0.00022191,2]
[362361127,1748215851876,-430.0,0.00022191,2]
[362361128,1748215851886,-430.0,0.00022191,2]
[362361129,1748215851896,-479.56,0.00022191,2]
[362361130,1748215851905,-430.0,0.00022191,2]
[362361131,1748215851916,-430.0,0.00022191,2]
[362361132,1748215851927,-207.4,0.00022194,2]
[362361133,1748215851938,-153.53485987,0.00022194,2]
[362361134,1748215851949,-152.01447341,0.00022194,2]
[362361135,1748215851960,-852.92295614,0.0002221,6]
[362361136,1748215851971,-1000.0,0.00022234,2]
[362361137,1748215851981,-500.0,0.00022256,2]
[362361138,1748215851991,-1105.18934572,0.0002227,2]
[362361139,1748215852002,-1000.0,0.0002227,2]
[362361140,1748215852012,-1053.18874352,0.0002227,2]
[362361141,1748215852024,-1000.0,0.0002227,2]
[362361142,1748215852035,-1200.0,0.0002227,2]
[362361143,1748215852047,-1000.0,0.0002227,2]
[362361144,1748215852059,-157.61818795,0.00022384,2]
[362361145,1748215852072,-1000.0,0.00022398,2]
[362361146,1748215852082,-1000.0,0.00022398,2]
[362361147,1748215852094,-501.01986666,0.00022398,2]
[362361148,1748215852105,-852.92295614,0.00022417,7]
[362361149,1748215852117,-1000.0,0.00022431,2]
[362361150,1748215852126,-1000.0,0.00022431,2]
[362361151,1748215852138,-518.21311571,0.00022431,2]
[362361152,1748215852147,-1000.0,0.00022431,2]
[362361153,1748215852155,-500.0,0.00022431,2]
[362361154,1748215852164,-465.95783611,0.00022465,2]
[362361155,1748215852172,-430.0,0.00022465,2]
[362361156,1748215852182,-525.51,0.00022465,2]
[362361157,1748215852194,-518.9,0.00022465,2]
[362361158,1748215852205,-528.45,0.00022465,2]
[362361159,1748215852216,-182.47,0.00022465,2]
[362361160,1748215852227,-430.0,0.00022465,2]
[362361161,1748215852239,-226.06,0.00022465,2]
[362361162,1748215852249,-430.0,0.00022465,2]
[362361163,1748215852258,-430.0,0.00022465,2]
[362361164,1748215852268,-430.0,0.00022465,2]
[362361165,1748215852278,-769.09,0.00022465,2]
[362361166,1748215852288,-430.0,0.00022465,2]
[362361167,1748215852297,-430.0,0.00022465,2]
[362361168,1748215852308,-546.57,0.00022465,2]
[362361169,1748215852319,-799.23,0.00022465,2]
[362361170,1748215852330,-528.01,0.00022465,2]
[362361171,1748215852339,-430.0,0.00022465,2]
[362361172,1748215852350,-430.0,0.00022465,2]
[362361173,1748215852360,-430.0,0.00022465,2]
[362361174,1748215852369,-430.0,0.00022465,2]
[362361175,1748215852379,-479.56,0.00022465,2]
[362361176,1748215852389,-574.0,0.00022465,2]
[362361177,1748215852400,-578.57,0.00022465,2]
[362361178,1748215852410,-1000.0,0.00022481,2]
[362361179,1748215852419,-500.59755841,0.000225,2]
[362361180,1748215852430,-304.31598241,0.00022533,2]
[362361181,1748215852439,-537.63623401,0.00022533,2]
[362361182,1748215852449,-500.0,0.00022533,2]
[362361183,1748215852459,-587.0,0.00022545,2]
[362361184,1748215852468,-852.92295614,0.00022624,7]
[362361185,1748215852478,-430.0,0.00022739,2]
[362361186,1748215852489,-525.51,0.00022739,2]
[362361187,1748215852500,-430.0,0.00022739,2]
[362361188,1748215852510,-495.24,0.00022739,2]
[362361189,1748215852519,-479.0,0.00022739,2]
[362361190,1748215852530,-430.0,0.00022739,2]
[362361191,1748215852539,-769.09,0.00022739,2]
[362361192,1748215852550,-431.54,0.00022739,2]
[362361193,1748215852559,-430.0,0.00022739,2]
[362361194,1748215852568,-546.57,0.00022739,2]
[362361195,1748215852577,-799.23,0.00022739,2]
[362361196,1748215852586,-430.0,0.00022739,2]
[362361197,1748215852594,-430.0,0.00022739,2]
[362361198,1748215852604,-576.6,0.00022739,2]
[362361199,1748215852615,-259.58,0.00022739,2]
[362361200,1748215852627,-479.56,0.00022739,2]
[362361201,1748215852637,-2000.0,0.000228,2]
[362361202,1748215852648,-1800.0,0.00022818,2]
[362361203,1748215852658,-852.92295614,0.00022831,8]
[362361204,1748215852669,-1500.0,0.00022979,2]
[362361205,1748215852682,-1500.0,0.00022979,2]
[362361206,1748215852694,-1500.0,0.00022979,2]
[362361207,1748215852704,-56461.0,0.00023,2]
[362361208,1748215852717,-201.88263519,0.00023,2]
[362361209,1748215852728,-172.774591,0.00023,2]
[362361210,1748215852739,-172.774591,0.00023,2]
[362361211,1748215852750,-2509.04038622,0.00023,2]
[362361212,1748215853020,-24269.69886707,0.00023,2]
[362361213,1748215853556,-430.0,0.00019178,2]
[362361214,1748215853566,-430.0,0.00019178,2]
[362361215,1748215853576,-430.0,0.00019178,2]
[362361216,1748215853586,-430.0,0.00019178,2]
[362361217,1748215853596,-396.14064329,0.00019452,2]
[362361218,1748215853614,-33.85935671,0.00019452,2]
[362361219,1748215853623,-430.0,0.00019452,2]
[362361220,1748215853634,-430.0,0.00019452,2]
[362361221,1748215853645,-430.0,0.00019726,2]
[362361222,1748215853655,-430.0,0.00019726,2]
[362361223,1748215853665,-430.0,0.0002,2]
[362361224,1748215853678,-430.0,0.0002,2]
[362361225,1748215853687,-430.0,0.00020273,2]
[362361226,1748215853697,-430.0,0.00020273,2]
[362361227,1748215853707,-430.0,0.00020547,2]
[362361228,1748215853719,-450.54,0.00020547,2]
[362361229,1748215853730,-430.0,0.00020821,2]
[362361230,1748215853739,-430.0,0.00021095,2]
[362361231,1748215853752,-115139.19469621,0.00023,2]
[362361232,1748215853763,-247.89948391,0.00023,2]
[362361233,1748215853773,-17935.46162181,0.00023,20]
[362361234,1748215853783,-3018.56426583,0.00023,2]
[362361235,1748215853793,-525.51,0.00023013,2]
[362361236,1748215853802,-430.0,0.00023013,2]
[362361237,1748215853812,-430.0,0.00023013,2]
[362361238,1748215853822,-769.09,0.00023013,2]
[362361239,1748215853831,-467.06,0.00023013,2]
[362361240,1748215853840,-546.57,0.00023013,2]
[362361241,1748215853849,-799.23,0.00023013,2]
[362361242,1748215853859,-430.0,0.00023013,2]
[362361243,1748215853867,-479.56,0.00023013,2]
[362361244,1748215853875,-852.92295614,0.00023038,8]
[362361245,1748215853883,-1000.0,0.00023081,2]
[362361246,1748215853892,-2000.0,0.000231,2]
[362361247,1748215853902,-589.71121358,0.00023113,2]
[362361248,1748215853914,-753.3,0.00023207,2]
[362361249,1748215853924,-481.12278164,0.00023245,8]
[362361250,1748215853937,-371.8001745,0.00023245,8]
[362361251,1748215853947,-500.0,0.00023263,2]
[362361252,1748215853957,-525.51,0.00023287,2]
[362361253,1748215853968,-430.0,0.00023287,2]
[362361254,1748215853978,-430.0,0.00023287,2]
[362361255,1748215853988,-769.09,0.00023287,2]
[362361256,1748215853997,-546.57,0.00023287,2]
[362361257,1748215854007,-799.23,0.00023287,2]